Workbook

Sheet 1全
A1: 2025年12月农村低保“一卡通”补助市镇分担发放表
A2: 序号 | B2: 行政区划 | C2: 户数 | D2: 人数 | E2: 农村低保 | H2: 备注
E3: 小计 | F3: 市负担70% | G3: 镇负担30%
A4: 1 | B4: 汇龙镇 | C4: 200 | D4: 255 | E4: 222013.00 | F4: =E4*0.7 -> 155409.10 | G4: =E4*0.3 -> 66603.90
A5: 2 | B5: 南阳镇 | C5: 358 | D5: 476 | E5: 419813.00 | F5: =E5*0.7 -> 293869.10 | G5: =E5*0.3 -> 125943.90
A6: 3 | B6: 北新镇 | C6: 305 | D6: 377 | E6: 330993.00 | F6: 231695.10 | G6: 99297.90
A7: 4 | B7: 王鲍镇 | C7: 344 | D7: 438 | E7: 376259.00 | F7: 263381.30 | G7: 112877.70
A8: 5 | B8: 合作镇 | C8: 323 | D8: 423 | E8: 343399.00 | F8: 240379.30 | G8: 103019.70
A9: 6 | B9: 海复镇 | C9: 249 | D9: 368 | E9: =316172-89 -> 316083.00 | F9: 221258.10 | G9: 94824.90
A10: 7 | B10: 近海镇 | C10: 246 | D10: 289 | E10: =255660-953 -> 254707.00 | F10: 178294.90 | G10: 76412.10
A11: 8 | B11: 寅阳镇 | C11: 270 | D11: 369 | E11: 329717.00 | F11: 230801.90 | G11: 98915.10
A12: 9 | B12: 惠萍镇 | C12: 231 | D12: 284 | E12: 253036.00 | F12: 177125.20 | G12: 75910.80
A13: 10 | B13: 东海镇 | C13: 370 | D13: 460 | E13: 399624.00 | F13: 279736.80 | G13: 119887.20
A14: 11 | B14: 启隆镇 | C14: 1 | D14: 3 | E14: 2646.00 | F14: 1852.20 | G14: 793.80
A15: 12 | B15: 启东经济开发区 | C15: 58 | D15: 78 | E15: 67965.00 | F15: 47575.50 | G15: 20389.50
A16: 13 | B16: 圆陀角旅游度假区 | C16: 48 | D16: 63 | E16: 51188.00 | F16: 35831.60 | G16: 15356.40
B17: 合计 | C17: =SUM(C4:C16) -> 3003 | D17: =SUM(D4:D16) -> 3883 | E17: =SUM(E4:E16) -> 3367443.00 | F17: 2357210.10 | G17: 1010232.90

Sheet 吕四
A1: 2025年12月农村低保“一卡通”补助市镇分担发放表
A2: 序号 | B2: 行政区划 | C2: 户数 | D2: 人数 | E2: 农村低保 | H2: 备注
E3: 小计 | F3: 市负担0% | G3: 镇负担100%
A4: 1 | B4: 吕四港镇 | C4: 508 | D4: 670 | E4: 581222.00 | F4: 0.00 | G4: =E4 -> 581222.00
B16: 合计 | C16: =SUM(C4:C15) -> 508 | D16: =SUM(D4:D15) -> 670 | E16: =SUM(E4:E15) -> 581222.00 | F16: =SUM(F4:F15) -> 0.00 | G16: =SUM(G4:G15) -> 581222.00

Sheet Sheet3
